[Event "Czech Open-Rapid 2022"]
[Site "Pardubice"]
[Date "2022.07.20"]
[Round "3.12"]
[White "Neuman, Petr"]
[Black "Valenta, Vit Vaclav"]
[Result "1-0"]
[ECO "A20"]
[WhiteElo "2378"]
[BlackElo "1996"]
[Annotator "TA"]
[PlyCount "97"]
[EventDate "2022.07.20"]
[EventType "swiss"]
[EventCountry "CZE"]
[SourceTitle "playchess.com"]
[Source "ChessBase"]
[SourceQuality "1"]
[TimeControl "1200+10"]

{[%evp 9,97,29,44,43,45,47,53,16,15,8,17,18,16,18,18,0,58,68,62,63,71,72,77,63,63,68,56,33,33,33,28,35,37,46,37,37,62,59,47,14,12,16,12,0,58,43,43,0,27,27,30,19,41,41,46,46,56,58,68,75,66,56,54,34,37,45,44,54,64,54,75,83,397,392,353,318,400,388,353,341,563,548,933,937,906,835,2778,2675,1791,1414]} 1. c4 {[%emt 0:00:03]} e5 {[%emt 0:00:02]} 2. g3 {[%emt 0:00:02]} g6 {[%emt 0:00:01]} 3. d4 {[%emt 0:00:13]} exd4 {[%emt 0:00:27]} 4. Qxd4 {[%emt 0:00:02]} Qf6 {[%emt 0:00:01]} 5. Qe3+ {[%emt 0:01:11]} Qe7 {[%emt 0:00:39]} 6. Nc3 {[%emt 0:00:52] A20: English Opening: 1...e5.} Qxe3 {[%emt 0:01:03]} 7. Bxe3 {[%emt 0:00:02]} ({Don't play} 7. fxe3 Bg7 $11) 7... Bg7 {[%emt 0:00:05] Inhibits Bd4.} 8. Nd5 {[%emt 0:00:32] White is slightly better.} Na6 {[%emt 0:00:16]} 9. O-O-O {[%emt 0:00:08]} Ne7 {[%emt 0:01:10]} 10. Nxe7 {[%emt 0:00:02]} Kxe7 {[%emt 0:00:02]} 11. Nh3 {[%emt 0:00:32]} d6 {[%emt 0:00:59]} 12. Nf4 {[%emt 0:00:03]} (12. Bg2 {is interesting.} Bf5 13. Nf4 Nb4 14. Nd5+) 12... Be6 {[%emt 0:00:22]} ({Better is} 12... Bf5 $11) 13. Nxe6 $14 {[%emt 0:00:04]} (13. Bg2 {seems wilder.} Nb4 14. Nxe6 fxe6 15. Kb1) 13... fxe6 {[%emt 0:00:09]} 14. Bg2 {[%emt 0:00:14] [#]} c6 $146 {[%emt 0:00:30]} ({Predecessor:} 14... Rab8 15. Bxa7 Ra8 16. Bd4 Bxd4 17. Rxd4 Nc5 18. Kb1 e5 19. Rd2 Rhf8 20. Rf1 Rab8 {1-0 (37) Delchev,A (2572)-Durdevic,R (2114) Genova 2003}) 15. h4 {[%emt 0:00:02] White is more active.} d5 {[%emt 0:00:42]} 16. cxd5 {[%emt 0:00:28]} cxd5 {[%emt 0:00:07]} 17. Kb1 {[%emt 0:00:19]} (17. h5 {feels hotter.} Rac8+ 18. Kb1 b6 19. g4) 17... b6 {[%emt 0:00:07]} 18. Bg5+ {[%emt 0:00:15]} Bf6 {[%emt 0:01:39]} 19. e4 {[%emt 0:00:02]} dxe4 {[%emt 0:00:31]} 20. Bxe4 {[%emt 0:00:07]} Rad8 {[%emt 0:00:04]} 21. Rde1 {[%emt 0:00:16]} Nc5 {[%emt 0:00:28]} 22. Bc2 {[%emt 0:00:02] This bishop pair is nice.} Nd3 {[%emt 0:00:16]} 23. Re2 {[%emt 0:01:22]} a5 {[%emt 0:01:04]} 24. Rd1 {[%emt 0:01:34]} Nc5 {[%emt 0:01:08]} 25. Rde1 {[%emt 0:00:02]} Bxg5 {[%emt 0:00:54]} 26. hxg5 {[%emt 0:00:02]} Rd6 {[%emt 0:00:18]} ({Black should try} 26... h6 $11) 27. f4 {[%emt 0:00:12]} Kf7 {[%emt 0:01:04]} 28. b3 {[%emt 0:00:33]} Kg7 {[%emt 0:00:37]} 29. a3 {[%emt 0:00:09] Threatens to win with b4.} Rd4 {[%emt 0:00:46] Against b4} 30. Rd1 {[%emt 0:00:23]} (30. Rh1 {is more complex.} Rhd8 31. Rh6 Rd2 32. Re1) 30... Rhd8 {[%emt 0:00:20]} 31. Rxd4 {[%emt 0:00:02]} Rxd4 {[%emt 0:00:01][%mdl 4096] Endgame KRB-KRN} 32. Kb2 {[%emt 0:00:08]} Kf7 {[%emt 0:00:26]} 33. Kc3 {[%emt 0:00:09]} Rd6 {[%emt 0:01:05]} 34. Kc4 {[%emt 0:02:18]} Na6 {[%emt 0:00:09]} 35. Be4 {[%emt 0:01:52]} Nc7 {[%emt 0:00:04]} 36. b4 {[%emt 0:02:23]} axb4 $1 {[%emt 0:00:47]} 37. axb4 {[%emt 0:00:02]} Rd1 $1 {[%emt 0:00:02][%cal Oe6e5]} 38. Rh2 {[%emt 0:01:21]} Kg7 {[%emt 0:00:10]} 39. Ra2 {[%emt 0:00:02]} Kf7 {[%emt 0:01:07][%cal Oe6e5]} 40. Ra7 {[%emt 0:00:12]} Rd7 {[%emt 0:00:05][%mdl 8192] This move loses the game for Black.} (40... Kf8 $16) 41. Bc6 $18 {[%emt 0:00:31]} Re7 {[%emt 0:00:02] [#]} 42. Rb7 $1 {[%emt 0:00:08]} e5 {[%emt 0:00:26]} 43. Rxb6 {[%emt 0:01:43] aiming for b5.} e4 {[%emt 0:00:12] [#]} 44. Rb7 $1 {[%emt 0:00:02] Hoping for b5.} e3 $2 {[%emt 0:00:07]} (44... Kf8 45. Ra7 (45. b5 e3 $16) 45... e3) 45. Bf3 {[%emt 0:00:03] White is clearly winning.} Rd7 {[%emt 0:00:57]} 46. b5 {[%emt 0:00:33][%cal Bb4b5,Bb5b6][%mdl 32] b6 would kill now.} Ke7 {[%emt 0:00:05]} 47. b6 {[%emt 0:00:25]} Na6 {[%emt 0:00:14]} 48. Rxd7+ {[%emt 0:00:06]} Kxd7 {[%emt 0:00:02]} 49. Kd3 {[%emt 0:00:04] Weighted Error Value: White=0.04 (flawless) /Black=0.32} 1-0

[Event "Czech Open-Rapid 2022"]
[Site "Pardubice"]
[Date "2022.07.20"]
[Round "3.13"]
[White "Babula, Vlastimil jr"]
[Black "Dobrowolski, Piotr"]
[Result "0-1"]
[ECO "B57"]
[WhiteElo "2039"]
[BlackElo "2423"]
[Annotator "TA"]
[PlyCount "198"]
[EventDate "2022.07.20"]
[EventType "swiss"]
[EventCountry "CZE"]
[SourceTitle "playchess.com"]
[Source "ChessBase"]
[SourceQuality "1"]
[TimeControl "1200+10"]

{[%evp 11,198,19,23,14,23,11,34,5,12,11,20,0,9,0,13,14,8,-31,-34,-22,-35,-30,-22,-103,-92,-88,-92,-92,-90,-102,-105,-105,-96,-94,-75,-75,-79,-110,-83,-76,-84,-457,-452,-437,-420,-335,-55,-179,-58,-178,-164,-165,-93,-450,-420,-420,-443,-409,-54,-54,-19,-177,0,-316,-68,-94,-70,-232,-39,-416,-406,-456,-429,-416,-404,-369,0,0,0,0,0,0,0,-227,-228,-222,-203,-228,-188,-390,-368,-264,-11,0,0,-249,-237,-159,-189,-261,0,0,97,0,0,0,0,0,0,0,0,0,0,0,0,0,0,0,0,0,0,0,0,0,0,0,0,0,0,0,0,0,0,-27999,-27999,-27999,-27999,-27999,-27999,-27999,0,0,0,0,0,0,0,0,0,0,0,0,0,0,0,0,0,-27998,-27998,-27999,-27999,-27975,-27975,-27976,-27976,-27977,-27977,-27978,-27978,-27979,-27978,-27979,-27979,-27981,-27980,-27981,-27981,-27987,-27983,-27984,-27984,-27985,-27984,-27989,-27989,-27998,-27998,-27999,-27999]} 1. e4 {[%emt 0:00:03]} c5 {[%emt 0:00:03]} 2. Nf3 {[%emt 0:00:01][%cal Bg1f3,Bf3d4,Bd4f5][%mdl 32]} Nc6 {[%emt 0:00:14]} 3. d4 {[%emt 0:00:02]} cxd4 {[%emt 0:00:02]} 4. Nxd4 {[%emt 0:00:01]} Nf6 {[%emt 0:00:01]} 5. Nc3 {[%emt 0:00:02]} d6 {[%emt 0:00:10]} 6. Bc4 {[%emt 0:00:01]} e5 {[%emt 0:00:01]} 7. Nf5 {[%emt 0:00:05] B57: Classical Sicilian: Sozin with 6...Qb6.} Be6 {[%emt 0:00:01]} 8. Ne3 {[%emt 0:00:54]} Rc8 {[%emt 0:00:02]} (8... Bxc4 {feels hotter.} 9. Nxc4 Nxe4 10. Nxe4 d5) 9. Bd5 {[%emt 0:03:19] White is slightly better.} Be7 {[%emt 0:00:28][%cal Bf8e7,Be7d8,Bd8b6][%mdl 32]} 10. O-O {[%emt 0:00:15]} O-O {[%emt 0:00:02] [#]} 11. f3 $146 {[%emt 0:00:53]} ({Predecessor:} 11. Kh1 g6 12. f3 Qd7 13. Rf2 Nd4 14. Bb3 Nxb3 15. axb3 a6 16. Ned5 Bxd5 17. Nxd5 Nxd5 18. Qxd5 {0-1 (49) Bragin,A (2396)-Epishin,V (2600) Kazan 2005}) 11... Qd7 {[%emt 0:03:08]} 12. Kh1 {[%emt 0:01:10]} Bd8 {[%emt 0:00:18]} 13. Bb3 {[%emt 0:00:08]} Nd4 {[%emt 0:00:32]} 14. Ned5 {[%emt 0:00:37]} Bxd5 {[%emt 0:00:47]} 15. Nxd5 {[%emt 0:00:45]} Nxd5 {[%emt 0:00:06]} 16. exd5 {[%emt 0:00:04]} Bb6 {[%emt 0:01:11]} 17. Qd3 {[%emt 0:01:12]} (17. c3 $11 {keeps the balance.} Nxb3 18. axb3) 17... f5 $1 $17 {[%emt 0:00:43][%cal Oe5e4,Bf7f5,Bf5f4][%mdl 32]} 18. Bd2 {[%emt 0:00:59]} f4 {[%emt 0:00:48]} 19. Be1 {[%emt 0:04:59]} Nf5 {[%emt 0:00:16]} 20. Bf2 {[%emt 0:00:13]} Bxf2 {[%emt 0:03:17]} 21. Rxf2 {[%emt 0:00:01]} Rf6 {[%emt 0:00:35]} 22. c3 {[%emt 0:01:32]} Rh6 {[%emt 0:00:26]} 23. Bc2 {[%emt 0:00:24]} Rf8 {[%emt 0:00:59]} 24. Kg1 {[%emt 0:02:39]} Rh5 {[%emt 0:00:16]} 25. Qd2 {[%emt 0:01:34]} Ne3 {[%emt 0:00:35]} 26. Be4 $2 {[%emt 0:00:42][%mdl 8192]} (26. Re1 $17 {is a better chance.}) 26... Rf6 $1 $19 {[%emt 0:00:34]} 27. Re2 {[%emt 0:00:40]} Rfh6 {[%emt 0:02:10]} 28. g4 {[%emt 0:00:10] [#]} Rh3 {[%emt 0:00:44]} (28... fxg3 $1 $19 29. Qxe3 Rxh2 30. Rxh2 Rxh2) 29. Kh1 {[%emt 0:00:23]} (29. c4 $1 $15) 29... Qd8 {[%emt 0:01:46]} (29... R6h4 $19 {...g5 is the strong threat.} 30. c4 h5) 30. b3 {[%emt 0:00:08]} (30. Rc1 $15) 30... R6h4 $1 {[%emt 0:00:47]} 31. Rg1 {[%emt 0:00:26]} Qg5 {[%emt 0:00:11]} (31... Kh8 $19 32. c4 b6) 32. a4 $2 {[%emt 0:00:05][%mdl 8192]} (32. c4 $17) 32... h5 {[%emt 0:00:03]} 33. gxh5 {[%emt 0:00:41]} Qxh5 {[%emt 0:00:01]} 34. Rf2 {[%emt 0:00:02]} Rg3 $2 {[%emt 0:00:39]} ({Black should try} 34... g5 $19 {And now ...Rg3 would win.} 35. a5 g4 36. fxg4 Nxg4 37. Rxg4+ Qxg4) 35. c4 $1 $15 {[%emt 0:00:24]} b6 $40 {[%emt 0:00:30][%mdl 128] With the idea ...g5. White needs to defend precisely.} 36. Qe2 $2 {[%emt 0:00:05]} (36. Ra1 $11 {and White has nothing to worry.}) 36... Qg5 $2 {[%emt 0:00:15]} (36... a5 $19 37. Ra1 Rgh3) 37. Qe1 $2 {[%emt 0:00:01][%mdl 8192]} (37. Ra1 $11) 37... Rhh3 $2 {[%emt 0:00:26]} (37... a5 $19 {Threatens to win with ...Rhh3.} 38. Ra2 Rhh3) 38. a5 {[%emt 0:00:05]} bxa5 {[%emt 0:00:11] Black is much more active.} 39. Ra2 $2 {[%emt 0:00:20]} (39. c5 $1 $15) 39... Qh5 $2 {[%emt 0:00:29]} (39... Rxg1+ 40. Qxg1 Qh5 41. Rf2 $15) ({Better is} 39... Nf5 $1 $19 {( -> ...Rxg1+)} 40. Rf1 Nh4) 40. Qf2 {[%emt 0:00:22][%mdl 8192]} (40. c5 $15 Rxg1+ 41. Kxg1) 40... Rxf3 $19 {[%emt 0:00:43] The board is on fire.} 41. Bxf3 {[%emt 0:00:15]} Rxf3 {[%emt 0:00:01]} 42. Qe2 {[%emt 0:00:08]} Nf5 {[%emt 0:00:31]} 43. c5 {[%emt 0:00:08]} dxc5 {[%emt 0:00:21]} (43... Ng3+ $19 44. Rxg3 fxg3 45. cxd6 Qf7 46. hxg3 Rxg3) 44. d6 $11 {[%emt 0:00:07]} Nxd6 {[%emt 0:00:18]} 45. Rd2 $1 {[%emt 0:00:17]} Nf5 {[%emt 0:00:12]} 46. Rd8+ {[%emt 0:00:04]} Kh7 {[%emt 0:00:03]} 47. Qe4 $2 {[%emt 0:00:07]} (47. Qc4 $1 $11 Ng3+ 48. Kg2 Rxb3 49. Qg8+ (49. Qxb3 Qe2+ 50. Kh3 Qh5+ 51. Kg2 Qe2+ 52. Kh3 Qh5+ 53. Kg2 $11) 49... Kh6 50. Rd6+ (50. Qxb3 Qe2+ 51. Kh3 Qh5+ 52. Kg2 Qe2+ 53. Kh3 Qh5+ 54. Kg2 $11) 50... g6 51. Qh8+ (51. Qxb3 Ne4 $11) (51. Qf8+ $2 Kg5 $19) 51... Kg5 52. Qxe5+ Kg4 53. Qe6+ Qf5 54. hxg3 (54. Qxb3 $2 Qe4+ 55. Kf2 Qe2#) 54... f3+ 55. Kh1 (55. Kf2 Rb2+ 56. Kf1 Rb1+ 57. Kf2 Rb2+ 58. Kf1 Rb1+ 59. Kf2 Rb2+ $11) 55... Qxe6 56. Rxe6) 47... Re3 $1 $19 {[%emt 0:00:54]} (47... Rxb3 $2 48. Rxg7+ $3 {[%mdl 512]} Kxg7 49. Qxe5+ Kf7 50. Qe8+ Kf6 51. Qxh5 $18) 48. Qa8 {[%emt 0:00:23][%csl Ga8][%cal Rd8h8]} Qf3+ {[%emt 0:00:28]} (48... Ng3+ 49. Rxg3 $1 Re1+ 50. Rg1 Rxg1+ 51. Kxg1 Qg6+ 52. Qg2 Qb1+ 53. Qf1 $18) 49. Qxf3 {[%emt 0:00:02]} Rxf3 {[%emt 0:00:01][%mdl 4096] Endgame KRR-KRN} 50. Rd5 $2 {[%emt 0:00:16]} (50. Rd7 {was the only defense.}) 50... Re3 $1 {[%emt 0:00:10]} 51. Rxc5 {[%emt 0:00:05] [#]} Nd4 $2 {[%emt 0:00:04]} (51... Rxb3 52. Rxe5 g6 53. Rxa5 $11) (51... f3 $1 $19 {[%cal Rf3f2] White must now prevent ...f2.} 52. Rxa5 Re2) 52. Rc7 $1 $11 {[%emt 0:00:03]} Nf3 {[%emt 0:00:35]} (52... Nxb3 $2 53. Rcxg7+ Kh6 54. Rg8 $18) 53. Rcxg7+ {[%emt 0:00:12]} (53. Rgxg7+ $11 {and White stays safe.} Kh6 54. Rg8) 53... Kh6 $19 {[%emt 0:00:01] aiming for ...Re2.} 54. R1g6+ {[%emt 0:00:21]} Kh5 {[%emt 0:00:01] Strongly threatening ...Re2.} 55. Re6 {[%emt 0:00:14] [#]} (55. Ra6 {was worth a try.}) 55... Re1+ $2 {[%emt 0:00:10]} (55... Rxb3 56. Re8 Kh6 57. Rg4 $11) (55... Re2 $1 $19 {[%csl Gf3][%cal Re2h2]} 56. Rh7+ Kg4 57. Rg6+ Kf5) 56. Kg2 $11 {[%emt 0:00:01]} e4 {[%emt 0:00:17]} (56... Rg1+ $11 {remains equal.} 57. Kxf3 Rxg7) 57. Rf7 {[%emt 0:00:17]} ({Stronger than} 57. Rxa7 Re2+ 58. Kf1 Ra2 $17) (57. Kf2 $16) 57... Re2+ {[%emt 0:00:38]} 58. Kf1 {[%emt 0:00:04]} Rxh2 {[%emt 0:00:16] Hoping for ...e3.} 59. Rxf4 {[%emt 0:00:09]} Kg5 {[%emt 0:00:05]} 60. Rfxe4 {[%emt 0:00:15]} Nd2+ {[%emt 0:00:02]} 61. Ke1 {[%emt 0:00:01]} Nxe4 {[%emt 0:00:13]} 62. Rxe4 {[%emt 0:00:01] KR-KR} Rb2 $2 {[%emt 0:00:01][%mdl 8192]} (62... Rh1+ $11 63. Kd2 Kf6) 63. Re5+ {[%emt 0:00:03]} Kf4 {[%emt 0:00:01]} 64. Rxa5 {[%emt 0:00:02]} Ke3 {[%emt 0:00:02][%cal Rb2b1]} 65. Kf1 $2 {[%emt 0:00:14][%mdl 8192]} (65. Kd1 $11) 65... Rf2+ $2 {[%emt 0:00:07][%mdl 8192]} (65... Kf3 $11 66. Ke1 Rxb3) 66. Kg1 $2 {[%emt 0:00:04][%mdl 8192]} (66. Ke1 $11) 66... Rf7 $2 {[%emt 0:00:01][%mdl 8192]} (66... Rb2 $11) 67. b4 $2 {[%emt 0:00:46][%mdl 8192]} (67. Kg2 $11) 67... Kd4 $2 {[%emt 0:00:12][%mdl 8192]} (67... Rb7 $11) 68. Rb5 $2 {[%emt 0:00:02][%mdl 8192]} (68. Kg2 $11) 68... Kc4 {[%emt 0:00:22]} 69. Rb8 $1 {[%emt 0:00:01]} Rf6 $2 {[%emt 0:00:16][%mdl 8192]} (69... Rf4 $11) 70. Rb7 $2 {[%emt 0:00:21][%mdl 8192]} (70. Ra8 $11) 70... a6 {[%emt 0:00:07]} 71. Kg2 {[%emt 0:00:01]} Kb3 $2 {[%emt 0:00:16][%mdl 8192]} (71... Rh6 $11) 72. b5 $2 {[%emt 0:00:25][%mdl 8192]} (72. Kg3 $11) 72... a5 {[%emt 0:00:05]} 73. Ra7 {[%emt 0:00:10]} a4 {[%emt 0:00:09]} 74. Ra6 {[%emt 0:00:06]} Rf8 {[%emt 0:00:01]} 75. b6 {[%emt 0:00:07]} Rb8 {[%emt 0:00:20]} 76. Kf3 {[%emt 0:00:03]} a3 {[%emt 0:00:01]} 77. Ke4 {[%emt 0:00:01]} Rd8 $2 {[%emt 0:00:48][%mdl 8192]} (77... a2 $11) 78. b7 {[%emt 0:00:18]} a2 {[%emt 0:00:01]} 79. Rb6+ $2 {[%emt 0:00:01][%mdl 8192]} (79. Ke5 $11) 79... Kc4 {[%emt 0:00:19]} 80. Ra6 {[%emt 0:00:03]} Re8+ {[%emt 0:00:01]} 81. Kf5 $2 {[%emt 0:00:09][%mdl 8192]} (81. Kf3 $11) 81... Kb3 $2 {[%emt 0:00:03][%mdl 8192]} (81... Rf8+ $11 82. Ke5 Rb8) 82. Ra8 {[%emt 0:00:36]} Rb8 {[%emt 0:00:02]} 83. Rxb8 {[%emt 0:00:09]} a1=Q {[%emt 0:00:01] KQ-KR} 84. Rc8 $2 {[%emt 0:00:11][%mdl 8192] Black keeps a firm grip on the game.} (84. Ra8 $11 Qf1+ 85. Ke6 Qh3+ 86. Kd6 Qg3+ 87. Kc6 Qc3+ 88. Kd7 Qd4+ 89. Kc7 (89. Kc6 Qe4+ 90. Kb6 Qb4+ 91. Kc6 Qe4+ 92. Kb6 Qb4+ 93. Kc6 Qe4+ $11) 89... Qc5+ 90. Kd7 Qb5+ 91. Kc7 Qe5+ 92. Kc6 Qe4+ 93. Kc7 Qf4+ 94. Kb6 Qd6+ 95. Kb5 Qe5+ 96. Kc6 Qe4+ 97. Kb6 Qb4+ 98. Kc6 Qe4+) 84... Qa5+ {[%emt 0:00:08] Black mates.} 85. Ke4 {[%emt 0:00:08]} Qb4+ {[%emt 0:00:02]} 86. Ke5 {[%emt 0:00:04]} Qxb7 {[%emt 0:00:02]} 87. Rc5 {[%emt 0:00:04]} Kb4 {[%emt 0:00:05]} 88. Rd5 {[%emt 0:00:01]} Qe7+ {[%emt 0:00:07]} 89. Kd4 {[%emt 0:00:05]} Qe6 {[%emt 0:00:01]} 90. Re5 {[%emt 0:00:03]} Qd6+ {[%emt 0:00:01]} 91. Ke4 {[%emt 0:00:01]} Kc4 {[%emt 0:00:01]} 92. Rf5 {[%emt 0:00:09]} Qe6+ {[%emt 0:00:01]} 93. Kf4 {[%emt 0:00:01]} Kd4 {[%emt 0:00:01]} 94. Rg5 {[%emt 0:00:06]} Qf6+ {[%emt 0:00:01]} 95. Kg4 {[%emt 0:00:01]} Ke4 {[%emt 0:00:01]} 96. Kh5 {[%emt 0:00:05]} Qh8+ {[%emt 0:00:39]} 97. Kg4 {[%emt 0:00:03]} Qh6 {[%emt 0:00:14]} 98. Rh5 {[%emt 0:00:22]} Qf4+ {[%emt 0:00:02]} 99. Kh3 {[%emt 0:00:03]} Kf3 {[%emt 0:00:02] Weighted Error Value: White=0.78/Black=0.53} 0-1

[Event "Czech Open-Rapid 2022"]
[Site "Pardubice"]
[Date "2022.07.20"]
[Round "3.14"]
[White "Rasik, Vitezslav"]
[Black "Laith, Kasib"]
[Result "1/2-1/2"]
[ECO "B50"]
[WhiteElo "2419"]
[BlackElo "2079"]
[Annotator "TA"]
[PlyCount "59"]
[EventDate "2022.07.20"]
[EventType "swiss"]
[EventCountry "CZE"]
[SourceTitle "playchess.com"]
[Source "ChessBase"]
[SourceQuality "1"]
[TimeControl "1200+10"]

{[%evp 16,59,0,-12,0,-1,0,-33,-19,-52,-52,-64,-64,-64,-64,-82,-85,-91,-74,-73,-10,-74,-49,-60,-51,-68,-49,-60,-37,-50,0,0,0,-14,1,16,12,0,0,-20,25,33,32,-19,-19,-33]} 1. e4 c5 {[%emt 0:00:11]} 2. Nf3 {[%emt 0:00:09]} d6 {[%emt 0:00:04]} 3. g3 {[%emt 0:00:27]} Nc6 {[%emt 0:00:10]} 4. Bg2 {[%emt 0:00:12]} Nf6 {[%emt 0:00:10]} 5. d3 {[%emt 0:00:08]} g6 {[%emt 0:00:06]} 6. O-O {[%emt 0:00:07]} Bg7 {[%emt 0:00:03]} 7. Re1 {[%emt 0:00:13]} O-O {[%emt 0:00:15]} 8. c3 {[%emt 0:00:10]} e5 {[%emt 0:00:11]} 9. h3 {[%emt 0:00:14] Recently 9.a4 got a lot of attention.} h6 {[%emt 0:02:21] A05: Réti Opening: 1 Nf3 Nf6.} 10. Be3 {[%emt 0:00:51]} Be6 {[%emt 0:00:25]} 11. Nbd2 {[%emt 0:00:22] [#]} Qd7 $146 {[%emt 0:01:35] Black is slightly better.} ({Predecessor:} 11... b5 12. d4 cxd4 13. cxd4 exd4 14. Nxd4 Nxd4 15. Bxd4 Nd7 16. Bxg7 Kxg7 17. Nb3 Nb6 {1-0 (44) Prskalo,Z (1922)-Biljak,T (1795) Zagreb 2019}) 12. Kh2 {[%emt 0:02:46]} b6 {[%emt 0:01:29]} 13. a4 {[%emt 0:01:51]} d5 {[%emt 0:00:42]} 14. exd5 {[%emt 0:00:40]} Nxd5 {[%emt 0:00:13]} 15. Nc4 {[%emt 0:00:24]} Rad8 {[%emt 0:01:25]} 16. Qc2 {[%emt 0:05:50]} Nde7 {[%emt 0:04:58]} 17. Rad1 {[%emt 0:00:14]} Bf5 {[%emt 0:00:54]} (17... Qc7 $17) 18. Bf1 {[%emt 0:00:23]} (18. Qc1 $11) 18... Kh7 {[%emt 0:00:44]} 19. Bc1 {[%emt 0:00:21][%cal Rc4e5]} Qc7 {[%emt 0:00:14]} 20. Qe2 {[%emt 0:03:08][%cal Rf3e5]} f6 {[%emt 0:01:36]} 21. Nh4 {[%emt 0:00:12]} Be6 {[%emt 0:00:07]} 22. f4 {[%emt 0:00:11]} Nf5 {[%emt 0:01:07]} (22... g5 $15 23. fxg5 hxg5) 23. Nxf5 $11 {[%emt 0:00:29]} Bxf5 {[%emt 0:00:07]} 24. fxe5 {[%emt 0:00:13]} fxe5 {[%emt 0:00:39]} 25. Bg2 {[%emt 0:00:05]} Be6 {[%emt 0:01:16]} 26. Be4 {[%emt 0:00:33]} Ne7 {[%emt 0:00:26]} 27. Rf1 {[%emt 0:00:20]} Bf5 {[%emt 0:00:55]} 28. Ne3 {[%emt 0:00:23]} Be6 {[%emt 0:00:09]} 29. Ng2 {[%emt 0:00:51]} (29. a5 $14) 29... Bb3 {[%emt 0:00:23][%csl LRa4,LRd1]} 30. Rde1 {[%emt 0:00:24] Weighted Error Value: White=0.17 (very precise) /Black=0.18 (very precise)} 1/2-1/2

[Event "Czech Open-Rapid 2022"]
[Site "Pardubice"]
[Date "2022.07.20"]
[Round "3.15"]
[White "Bertram, Karsten"]
[Black "Cerveny, Martin"]
[Result "0-1"]
[ECO "D00"]
[WhiteElo "2062"]
[BlackElo "2396"]
[Annotator "TA"]
[PlyCount "93"]
[EventDate "2022.07.20"]
[EventType "swiss"]
[EventCountry "CZE"]
[SourceTitle "playchess.com"]
[Source "ChessBase"]
[SourceQuality "1"]
[TimeControl "1200+10"]

{[%evp 9,93,-7,0,0,0,1,0,-43,-43,-37,-30,-83,-80,-74,-77,-83,-70,-80,-67,-71,-69,-74,-82,-88,-84,-100,-64,-64,-63,-63,-33,-33,-35,-40,-12,-14,-10,-18,-12,-10,-22,-38,-17,-23,-44,-25,-11,-11,-11,-15,-11,-64,-52,-162,-163,-160,-85,-185,-183,-165,-116,-289,-277,-366,-340,-443,-176,-175,-89,-139,-139,-133,-133,-266,-261,-263,-248,-272,-269,-287,-277,-341,-337,-355,-347,-393]} 1. d4 {[%emt 0:00:03]} d5 {[%emt 0:00:02]} 2. Nc3 {[%emt 0:00:01]} Nf6 {[%emt 0:00:09]} 3. Bf4 {[%emt 0:00:02]} e6 {[%emt 0:00:50]} 4. Nb5 {[%emt 0:00:04]} Na6 {[%emt 0:00:13]} 5. e3 {[%emt 0:00:02]} c6 {[%emt 0:02:47]} 6. Nc3 {[%emt 0:00:02] D00: 1 d4 d5: Unusual lines.} c5 {[%emt 0:00:56]} 7. Bxa6 {[%emt 0:03:09]} bxa6 {[%emt 0:00:01] [#]} 8. Na4 $146 {[%emt 0:00:14] The position is equal.} ({Predecessor:} 8. Nf3 cxd4 9. exd4 Be7 10. O-O O-O 11. Re1 Bb7 12. Ne5 Rc8 13. Bg5 h6 14. Bh4 {1-0 (42) Lugovskoy,M (2436)-Sergeyev,A (2400) Sochi 2016}) 8... cxd4 {[%emt 0:00:57]} 9. exd4 {[%emt 0:00:09]} Bd7 {[%emt 0:00:28]} 10. c3 {[%emt 0:06:35]} (10. Nc3 $11 {keeps the balance.}) 10... Qa5 $17 {[%emt 0:00:22]} 11. Nc5 {[%emt 0:00:01]} Bxc5 {[%emt 0:00:02]} 12. dxc5 {[%emt 0:00:01]} Qxc5 {[%emt 0:00:02]} 13. Nf3 {[%emt 0:00:25]} Qc4 {[%emt 0:00:22]} 14. Qd4 {[%emt 0:03:07]} Qxd4 {[%emt 0:00:43]} 15. cxd4 {[%emt 0:00:09]} Ke7 {[%emt 0:00:23]} 16. Ne5 {[%emt 0:00:31][%cal Bf3e5,Be5d3,Bd3c5][%mdl 32]} Rhc8 {[%emt 0:00:12]} 17. O-O {[%emt 0:00:23]} Ne8 {[%emt 0:01:57]} 18. Rfc1 {[%emt 0:00:29]} f6 {[%emt 0:00:11]} 19. Nd3 {[%emt 0:00:08]} Rc4 {[%emt 0:00:31]} 20. Rxc4 {[%emt 0:00:16]} dxc4 {[%emt 0:00:02]} 21. Nc5 {[%emt 0:00:02]} a5 {[%emt 0:01:02]} 22. Rc1 {[%emt 0:00:31]} g5 {[%emt 0:00:13]} 23. Bg3 {[%emt 0:00:40]} h5 {[%emt 0:02:00] Strongly threatening ...h4.} 24. h4 {[%emt 0:00:48]} ({Don't go for} 24. Rxc4 $2 h4 25. Nxd7 Kxd7 $19) 24... gxh4 {[%emt 0:00:02]} 25. Bf4 {[%emt 0:00:00]} Bb5 {[%emt 0:01:35]} 26. a4 {[%emt 0:00:09]} Bc6 {[%emt 0:00:13]} 27. Rxc4 {[%emt 0:00:09]} Bd5 {[%emt 0:00:01]} 28. Rc3 {[%emt 0:00:06]} Rc8 {[%emt 0:00:58]} 29. f3 {[%emt 0:00:41]} Rc6 {[%emt 0:00:36]} 30. Kf2 {[%emt 0:00:27]} (30. Ne4 $11) 30... Ng7 {[%emt 0:00:09]} 31. Ke3 {[%emt 0:02:00]} (31. Nd3 $15) 31... Nf5+ $19 {[%emt 0:00:18]} 32. Kd3 {[%emt 0:00:00]} h3 {[%emt 0:01:24]} (32... Rb6 $142 $1 {[%cal Rb6b2]} 33. b3 Rb4) 33. g4 {[%emt 0:00:12]} (33. gxh3 $17 {was the only defense.} Bxf3 34. Ne4 Rxc3+ 35. bxc3) 33... hxg4 {[%emt 0:00:11]} 34. fxg4 {[%emt 0:00:01] [#]} Nd6 {[%emt 0:00:46]} (34... Nh6 $1 $19 {[%mdl 512]} 35. Bxh6 h2) 35. b3 $2 {[%emt 0:00:17]} (35. g5 $17) 35... Nf7 {[%emt 0:00:34]} 36. Kd2 {[%emt 0:00:53]} Bg2 {[%emt 0:00:04]} 37. Re3 {[%emt 0:00:52]} e5 $2 {[%emt 0:00:12]} (37... Ng5 38. Ke2 e5) 38. Nd3 {[%emt 0:00:29][%cal Rd4e5] [#]} Rb6 {[%emt 0:02:47]} (38... Ng5 $1 $19 {[%cal Rg5e4] And now ...Ne4+ would win.} 39. dxe5 Nf3+ 40. Ke2 h2 41. exf6+ Kxf6 42. g5+ Kf5 43. Bxh2 Nxh2 44. Re5+ Kg4) 39. dxe5 {[%emt 0:00:13]} ({White should try} 39. Kc3) 39... Rxb3 $17 {[%emt 0:00:02]} 40. exf6+ {[%emt 0:00:07]} Kxf6 {[%emt 0:00:01]} 41. Nf2 {[%emt 0:01:39]} (41. Re8 $17) 41... Rb2+ $19 {[%emt 0:00:01]} 42. Ke1 {[%emt 0:00:04]} Rb4 {[%emt 0:00:08][%csl LRa4,LRf4]} 43. Bc7 {[%emt 0:00:21]} Rc4 {[%emt 0:00:27]} ({Inferior is} 43... Rxa4 44. Nxh3 Rxg4 45. Nf4 $15) 44. Bb8 {[%emt 0:00:23]} Ng5 {[%emt 0:00:10]} ({And not} 44... Rxa4 45. Nxh3 Rxg4 46. Nf4 $17) 45. Be5+ {[%emt 0:00:07]} Kg6 {[%emt 0:00:04]} 46. Bg3 {[%emt 0:00:34]} Rxa4 {[%emt 0:00:22]} 47. Rd3 {Weighted Error Value: White=0.30/Black=0.17 (very precise)} 0-1